bitfinex/quotes_SOLUSD_20250518
["timestamp","ask_amount","ask_price","bid_price","bid_amount"]
[1747547803781,9.1788368,169.95,169.94,1.5707]
[1747547804887,9.1788368,169.95,169.94,10.78007718]
[1747547805095,9.1788368,169.95,169.94,29.42972604]
[1747547805288,1.0,170.0,169.97,26.0]
[1747547805483,1.0,170.0,169.98,19.6]
[1747547806898,1.0,170.0,169.99,31.88269898]
[1747547809582,1.0,170.0,169.99,5.88269898]
[1747547810598,1.0,170.0,169.99,24.53234784]
[1747547811317,1.0,170.0,169.99,5.88269898]
[1747547811818,1.0,170.0,169.99,24.53234784]
[1747547812595,1.0,170.0,169.99,5.88269898]
[1747547814189,1.0,170.0,169.99,31.88269898]
[1747547816711,1.0,170.0,169.99,26.0]
[1747547816944,1.0,170.0,169.99,31.88269898]
[1747547819918,1.0,170.0,169.99,26.0]
[1747547820300,1.0,170.0,169.99,31.88269898]
[1747547820791,1.0,170.0,169.99,26.0]
[1747547821517,1.0,170.0,169.99,31.88269898]
[1747547825621,1.0,170.0,169.99,24.53234784]
[1747547827222,1.0,170.0,169.99,13.86199898]
[1747547827396,1.0,170.0,169.99,52.35164784]
[1747547827734,5.87789531,170.13,170.06,26.0]
[1747547827928,6.5781,170.15,170.07,25.75993179]
[1747547828301,6.5781,170.15,170.08,18.64964886]
[1747547828504,6.5781,170.15,170.07,25.75993179]
[1747547829245,9.96582795,170.12,170.07,19.88]
[1747547829527,9.96582795,170.12,170.06,26.0]
[1747547829697,12.45537597,170.15,170.06,26.0]
[1747547830017,5.87820362,170.12,170.06,26.0]
[1747547830216,5.87751263,170.14,170.06,31.88020172]
[1747547830410,9.96582795,170.13,170.06,26.0]
[1747547830621,9.96582795,170.12,170.06,26.0]
[1747547831619,5.87854917,170.11,170.06,26.0]
[1747547832407,9.96582795,170.08,169.97,18.90595436]
[1747547832616,9.96582795,170.07,169.99,20.22]
[1747547833298,9.96582795,170.07,170.02,26.0]
[1747547834212,5.87926232,170.09,170.02,31.88147344]
[1747547834406,9.96582795,170.08,170.02,26.0]
[1747547834606,5.87926232,170.09,170.02,26.0]
[1747547834607,9.96582795,170.07,170.02,26.0]
[1747547835607,9.96582795,170.08,170.02,26.0]
[1747547836008,9.96582795,170.07,170.02,26.0]
[1747547837327,5.87926232,170.09,170.02,26.0]
[1747547837527,9.96582795,170.07,170.02,26.0]
[1747547837714,5.88027754,170.06,170.02,26.0]
[1747547839013,9.96582795,170.04,169.98,26.0]
[1747547839720,9.96582795,170.05,169.98,26.0]
[1747547839916,15.84661929,170.05,169.99,26.0]
[1747547840633,9.96582795,170.04,169.99,26.0]
[1747547840813,5.88079134,170.05,169.99,26.0]
[1747547841013,9.96582795,170.04,169.99,26.0]
[1747547841315,15.84621003,170.06,169.99,26.0]
[1747547841510,9.96582795,170.05,169.99,26.0]
[1747547841925,15.84679713,170.04,169.99,26.0]
[1747547843019,5.88096918,170.04,169.99,26.0]
[1747547843214,15.84679713,170.04,169.99,26.0]
[1747547843415,5.88096918,170.04,169.99,26.0]
[1747547843621,5.88096918,170.04,169.99,31.8826661]
[1747547845120,15.84654656,170.05,169.99,31.8826661]
[1747547845517,15.84654656,170.05,169.98,31.88296752]
[1747547845923,15.84654656,170.05,169.98,31.86296752]
[1747547846118,5.88071861,170.05,169.98,31.86296752]
[1747547846323,15.84654656,170.05,169.98,31.86296752]
[1747547848115,5.87993179,170.07,169.98,31.86296752]
[1747547848327,9.96582795,170.05,169.98,31.86296752]
[1747547849230,15.84663433,170.05,169.98,31.86296752]
[1747547849619,9.96582795,170.04,169.98,31.86296752]
[1747547850621,158.38,170.08,169.98,31.86296752]
[1747547850827,9.96582795,170.04,169.98,31.86296752]
[1747547851244,9.96582795,170.04,169.99,3.32426736]
[1747547851642,9.96582795,170.05,169.99,3.32426736]
[1747547851843,9.96582795,170.04,169.99,3.32426736]
[1747547852543,9.96582795,170.04,169.98,31.86296752]
[1747547853445,15.84686388,170.04,169.98,31.86296752]
[1747547853845,9.96582795,170.03,169.99,26.0]
[1747547854144,9.96582795,170.02,169.99,26.0]
[1747547854520,9.96582795,170.0,169.95,5.85831792]
[1747547854722,9.96582795,169.99,169.95,4.19781792]
[1747547854931,9.96582795,169.99,169.95,30.19781792]
[1747547855221,9.96582795,169.98,169.95,4.19781792]
[1747547855422,9.96582795,169.98,169.96,26.0]
[1747547855646,9.96582795,169.97,169.95,4.19781792]
[1747547855915,9.96582795,169.96,169.95,4.19781792]
[1747547856121,9.96582795,169.96,169.93,0.6]
[1747547856325,9.96582795,169.95,169.93,2.39345556]
[1747547856534,9.96582795,170.01,169.93,2.39345556]
[1747547856535,9.96582795,169.94,169.93,2.39345556]
[1747547857631,15.85025774,169.94,169.93,2.39345556]
[1747547858245,26.0640407,169.96,169.93,2.39345556]
[1747547858435,9.96582795,169.94,169.93,2.39345556]
[1747547859244,20.18,169.96,169.93,2.39345556]
[1747547859421,9.96582795,169.95,169.93,2.39345556]
[1747547860640,26.06375023,169.96,169.93,2.39345556]
[1747547861024,9.96582795,169.95,169.93,2.39345556]
[1747547863443,9.96582795,169.94,169.93,2.39345556]
[1747547864149,9.96582795,169.94,169.93,1.79345556]
[1747547864532,15.85025774,169.94,169.93,1.79345556]
[1747547865352,15.85025774,169.94,169.9,14.09998293]
[1747547866240,9.96582795,169.95,169.9,14.09998293]
[1747547866746,9.96582795,169.94,169.9,14.09998293]
[1747547868156,9.96582795,169.93,169.9,14.09998293]
[1747547868339,5.88444195,169.94,169.9,14.09998293]
[1747547868542,9.96582795,169.93,169.9,14.09998293]
[1747547869050,9.96582795,169.94,169.9,14.09998293]
[1747547869241,5.88418628,169.95,169.9,14.09998293]
[1747547869242,9.96582795,169.95,169.9,19.98574669]
[1747547869645,9.96582795,169.93,169.9,14.09998293]
[1747547871157,9.96582795,169.92,169.9,14.09998293]
[1747547871566,15.85098695,169.92,169.9,14.09998293]
[1747547872534,9.96582795,169.91,169.9,14.09998293]
[1747547873136,9.96582795,169.92,169.9,14.09998293]
[1747547874762,9.96582795,169.93,169.9,14.09998293]
[1747547879163,7.54548502,169.95,169.9,14.09998293]
[1747547879363,9.96582795,169.93,169.9,14.09998293]
[1747547879862,15.85063339,169.93,169.9,14.09998293]
[1747547880261,9.96582795,169.92,169.9,14.09998293]
[1747547880472,9.96582795,169.91,169.9,14.09998293]
[1747547882738,15.85129672,169.91,169.9,14.09998293]
[1747547883339,15.85129672,169.91,169.85,31.88750339]
[1747547883541,9.96582795,169.9,169.85,31.88750339]
[1747547884541,9.96582795,169.91,169.85,31.88750339]
[1747547885262,9.96582795,169.9,169.84,26.0]
[1747547886371,5.88616163,169.89,169.84,26.0]
[1747547886751,15.85198958,169.89,169.84,26.0]
[1747547887447,14.71226982,169.93,169.84,26.0]
[1747547887448,5.88512241,169.92,169.84,31.88779779]
[1747547887762,9.96582795,169.89,169.84,31.88779779]
[1747547888469,15.85200559,169.89,169.84,26.0]
[1747547888762,15.85200559,169.89,169.84,26.6]
[1747547889065,9.96582795,169.88,169.84,26.6]
[1747547890561,15.85235341,169.88,169.84,26.6]
[1747547890963,9.96582795,169.88,169.84,26.6]
[1747547891544,15.85239632,169.88,169.84,26.6]
[1747547892169,9.96582795,169.87,169.84,26.6]
[1747547892467,9.96582795,169.85,169.84,0.6]
[1747547892680,15.85337578,169.85,169.84,0.6]
[1747547893250,9.96582795,169.85,169.84,0.6]
[1747547899263,9.96582795,169.86,169.84,0.6]
[1747547899568,9.96582795,169.87,169.84,6.48789448]
[1747547900057,149.7813569,169.92,169.84,32.48789448]
[1747547900246,9.96582795,169.89,169.84,32.48789448]
[1747547901259,9.96582795,169.9,169.84,32.48789448]
[1747547901471,29.74582795,169.91,169.84,47.2076307]
[1747547901682,29.74582795,169.91,169.85,3.33023239]
[1747547902579,19.78,169.91,169.87,26.0]
[1747547904263,19.78,169.91,169.89,26.0]
[1747547904478,11.5813569,169.92,169.89,26.0]
[1747547904778,11.5813569,169.92,169.9,5.88581518]
[1747547905279,19.78,169.96,169.93,26.0]
[1747547907175,19.78,169.96,169.93,5.8845944]
[1747547908576,19.78,169.96,169.92,5.88512241]
[1747547911779,19.78,169.96,169.92,25.88512241]
[1747547911980,9.96582795,169.99,169.95,26.0]
[1747547914085,9.96582795,169.99,169.95,31.88384065]
[1747547915187,9.96582795,169.98,169.95,26.0]
[1747547915775,9.96582795,169.97,169.93,31.88466888]
[1747547916598,5.88242142,170.0,169.93,31.88466888]
[1747547916895,9.96582795,169.97,169.93,31.88466888]
[1747547917196,9.96582795,169.98,169.93,31.88466888]
[1747547917390,9.96582795,169.99,169.93,31.88466888]
[1747547917592,9.96582795,170.0,169.93,31.88466888]
[1747547917791,163.86211863,170.01,169.93,31.88466888]
[1747547917985,9.96582795,169.99,169.93,31.88466888]
[1747547919690,157.98,170.01,169.93,31.88466888]
[1747547919691,157.98,170.01,169.96,26.0]
[1747547919890,9.96582795,170.0,169.96,26.0]
[1747547920298,29.74582795,170.01,169.96,26.0]
[1747547920601,19.78,170.01,169.96,26.0]
[1747547921381,29.74582795,170.01,169.96,26.0]
[1747547921598,29.74582795,170.01,169.96,31.8836767]
[1747547921897,9.96582795,170.0,169.96,26.0]
[1747547922273,9.96582795,169.98,169.96,26.0]
[1747547922479,9.96582795,169.97,169.93,5.88450306]
[1747547922683,25.66202957,170.01,169.93,5.88450306]
[1747547922886,25.66202957,170.01,169.93,31.88450306]
[1747547923087,9.96582795,169.99,169.93,31.88450306]
[1747547926088,25.66205211,170.01,169.93,31.88450306]
[1747547926295,9.96582795,169.99,169.93,31.88450306]
[1747547926593,25.66205211,170.01,169.93,31.88450306]
[1747547926594,9.96582795,170.0,169.93,31.88450306]
[1747547926796,29.74582795,170.01,169.96,26.0]
[1747547927318,9.96582795,170.01,169.96,26.0]
[1747547927496,9.96582795,170.0,169.96,26.0]
[1747547927914,9.96582795,170.01,169.95,26.0]
[1747547928313,9.96582795,170.01,169.96,5.88373734]
[1747547929612,9.96582795,169.99,169.95,26.0]
[1747547929812,9.96582795,169.98,169.93,5.88477608]
[1747547930391,9.96582795,169.98,169.93,31.88477608]
[1747547932617,9.96582795,169.99,169.93,31.88477608]
[1747547933113,5.88166098,170.02,169.93,31.88477608]
[1747547933320,9.96582795,169.99,169.93,31.88477608]
[1747547937453,5.88166098,170.02,169.93,31.88477608]
[1747547937616,9.96582795,169.99,169.93,31.88477608]
[1747547937940,5.88166098,170.02,169.93,31.88477608]
[1747547938314,9.96582795,169.99,169.93,31.88477608]
[1747547938517,5.88166098,170.02,169.93,31.88477608]
[1747547938739,9.96582795,170.0,169.93,46.59671629]
[1747547938927,9.96582795,170.0,169.96,26.0]
[1747547939238,9.96582795,170.02,169.96,26.0]
[1747547939444,9.96582795,170.02,169.97,5.88339118]
[1747547940455,117.21215805,170.03,169.97,5.88339118]
[1747547940660,9.96582795,170.02,169.97,5.88339118]
[1747547940833,9.96582795,170.01,169.96,31.88363179]
[1747547943446,9.69765296,170.05,169.97,18.64964886]
[1747547943767,9.69765296,170.05,169.98,5.88304506]
[1747547943967,19.66348091,170.05,169.98,5.88304506]
[1747547945763,19.66348091,170.05,169.99,3.32414144]
[1747547947159,9.96582795,170.04,170.0,3.32414144]
[1747547947668,9.96582795,170.04,170.01,5.88200694]
[1747547948584,9.69765296,170.05,170.01,5.88200694]
[1747547949742,9.69765296,170.05,169.98,20.59035307]
[1747547951280,9.69765296,170.05,169.99,3.32640336]
[1747547951452,19.66348091,170.05,169.99,3.32640336]
[1747547951845,19.66348091,170.05,170.0,5.88235294]
[1747547952377,9.69765296,170.05,170.0,5.88235294]
[1747547954079,9.69765296,170.05,170.02,5.88166098]
[1747547954454,19.66348091,170.05,170.02,5.88166098]
[1747547954656,9.69765296,170.05,170.02,5.88166098]
[1747547954981,19.66348091,170.05,170.02,5.88166098]
[1747547955977,19.66348091,170.05,169.98,20.59035307]
[1747547956781,19.66348091,170.05,169.99,3.32349764]
[1747547956960,9.69765296,170.05,170.0,18.64964886]
[1747547958177,9.69765296,170.05,170.01,23.91052193]
[1747547960179,9.69765296,170.05,170.01,20.58702429]
[1747547960488,29.46582795,170.07,170.01,20.58702429]
[1747547962387,9.96582795,170.05,170.01,5.88200694]
[1747547962685,19.5,170.07,170.01,5.88200694]
[1747547962686,9.96582795,170.04,170.01,5.88200694]
[1747547963760,19.5,170.07,170.01,5.88200694]
[1747547963959,9.96582795,170.04,170.01,5.88200694]
[1747547964764,19.5,170.07,170.01,5.88200694]
[1747547965079,9.96582795,170.04,170.01,5.88200694]
[1747547965279,19.5,170.07,170.01,5.88200694]
[1747547965582,9.96582795,170.05,170.01,5.88200694]
[1747547965883,9.96582795,170.06,170.01,5.88200694]
[1747547966589,9.96582795,170.05,170.01,5.88200694]
[1747547968018,19.5,170.07,170.0,6.48230887]
[1747547968019,9.96582795,170.04,170.0,6.48230887]
[1747547968201,25.38000987,170.07,170.0,6.48230887]
[1747547968202,9.96582795,170.03,170.0,6.48230887]
[1747547969514,9.96582795,170.03,170.0,0.6]
[1747547969811,9.96582795,170.03,170.0,6.48224253]
[1747547970026,19.5,170.07,170.0,6.48224253]
[1747547970027,5.88038735,170.06,170.0,6.48224253]
[1747547970183,9.96582795,170.03,170.0,6.48224253]
[1747547971213,9.96582795,170.03,170.0,0.6]
[1747547971397,9.96582795,170.02,170.0,0.6]
[1747547971593,9.96582795,170.01,170.0,0.6]
[1747547973193,15.84783489,170.01,170.0,0.6]
[1747547976818,25.81366284,170.01,170.0,0.6]
[1747547977200,45.11366284,170.01,170.0,0.6]
[1747547978743,65.3748117,170.01,170.0,0.6]
[1747547978928,91.3748117,170.01,170.0,0.6]
[1747547979140,6.1553,169.97,169.92,20.0]
[1747547979331,9.96582795,169.93,169.92,20.0]
[1747547980516,5.88373734,169.96,169.92,20.0]
[1747547980713,9.96582795,169.94,169.92,20.0]
[1747547981010,9.96582795,169.93,169.92,20.0]
[1747547982604,15.85060403,169.93,169.92,20.0]
[1747547988627,9.96582795,169.93,169.92,20.0]
[1747547993346,138.2,169.94,169.92,20.0]
[1747547993632,9.96582795,169.93,169.92,20.0]
[1747547997721,15.85060403,169.93,169.92,20.0]
[1747548000544,138.2,169.94,169.92,20.0]
[1747548000732,40.10600476,169.93,169.92,20.0]
[1747548001037,40.10600476,169.93,169.8,22.80798749]
[1747548001038,26.0,169.9,169.79,10.0871449]
[1747548001218,9.96582795,169.87,169.79,10.0871449]
[1747548001419,9.96582795,169.87,169.79,36.0871449]
[1747548001938,9.96582795,169.88,169.82,26.0]
[1747548002328,9.96582795,169.88,169.82,31.88856944]
[1747548002844,19.48,169.89,169.82,33.52536944]
[1747548003421,9.96582795,169.88,169.82,33.52536944]
[1747548003735,9.96582795,169.85,169.79,43.95898684]
[1747548004039,19.48,169.89,169.83,26.0]
[1747548004235,15.8517403,169.9,169.84,5.88789448]
[1747548004423,9.96582795,169.9,169.84,5.88789448]
[1747548004632,25.36556297,169.91,169.84,5.88789448]
[1747548004953,9.96582795,169.89,169.84,5.88789448]
[1747548005256,9.96582795,169.88,169.83,31.88815173]
[1747548005563,144.08518766,169.92,169.84,1.6368]
[1747548005729,23.19811578,169.95,169.86,26.0]
[1747548005937,39.04812491,169.95,169.87,18.64964886]
[1747548006335,39.04812491,169.95,169.88,5.88650812]
[1747548006550,9.96582795,169.94,169.88,5.88650812]
[1747548006753,9.96582795,169.93,169.88,5.88650812]
[1747548007339,9.96582795,169.93,169.87,5.88685465]
[1747548007744,9.96582795,169.94,169.87,5.88685465]
[1747548008441,9.96582795,169.94,169.87,24.53650351]
[1747548009753,9.96582795,169.93,169.87,5.88685465]
[1747548009954,9.96582795,169.92,169.87,5.88685465]
[1747548010145,9.96582795,169.9,169.85,5.88751486]
[1747548010354,9.96582795,169.89,169.84,53.04466538]
[1747548011163,9.96582795,169.9,169.84,53.04466538]
[1747548011457,5.88559625,169.91,169.84,53.04466538]
[1747548011649,9.96582795,169.9,169.84,53.04466538]
[1747548012852,9.96582795,169.91,169.84,53.04466538]
[1747548013550,9.96582795,169.9,169.84,53.04466538]
[1747548013753,9.96582795,169.88,169.84,53.04466538]
[1747548013958,9.96582795,169.88,169.84,51.40786538]
[1747548014553,19.5,169.92,169.84,51.40786538]
[1747548014859,9.96582795,169.89,169.84,51.40786538]
[1747548015061,9.96582795,169.88,169.82,5.88858791]
[1747548015267,9.96582795,169.87,169.82,25.38858791]
[1747548015559,9.96582795,169.86,169.82,25.38858791]
[1747548015751,9.96582795,169.86,169.81,5.88886814]
[1747548016268,5.88619908,169.89,169.81,5.88886814]
[1747548016473,9.96582795,169.86,169.81,5.88886814]
[1747548017366,9.96582795,169.86,169.8,33.46366732]
[1747548017556,5.88581518,169.9,169.8,33.46366732]
[1747548017745,9.96582795,169.86,169.8,33.46366732]
[1747548020377,9.96582795,169.86,169.8,52.96366732]
[1747548021484,15.85306582,169.86,169.8,52.96366732]
[1747548021677,9.96582795,169.86,169.8,52.96366732]
[1747548022771,9.96582795,169.86,169.8,33.46366732]
[1747548022970,9.96582795,169.86,169.8,52.94366732]
[1747548023889,9.96582795,169.86,169.81,9.22513024]
[1747548024091,15.85277349,169.87,169.81,9.22513024]
[1747548024298,6.1689,169.91,169.82,18.64964886]
[1747548024498,9.96582795,169.88,169.82,18.64964886]
[1747548025268,9.96582795,169.87,169.81,5.88863644]
[1747548026279,15.85275186,169.87,169.81,5.88863644]
[1747548027196,5.88656037,169.88,169.81,24.5382853]
[1747548027499,15.85237005,169.88,169.81,24.5382853]
[1747548027999,15.85237005,169.88,169.82,3.33603171]
[1747548028994,15.85237005,169.88,169.82,9.22446734]
[1747548029506,15.85237005,169.88,169.82,5.88843563]
[1747548031204,15.85237005,169.88,169.81,5.88884799]
[1747548031376,9.96582795,169.85,169.8,47.0545]
[1747548031705,5.8865421,169.88,169.79,5.8895188]
[1747548031706,9.96582795,169.83,169.79,5.8895188]
[1747548032074,9.96582795,169.84,169.79,5.8895188]
[1747548033703,15.85376481,169.84,169.78,36.08773951]
[1747548033889,15.85376481,169.84,169.78,31.88992159]
[1747548034785,9.96582795,169.84,169.78,31.88992159]
[1747548035192,15.85379931,169.84,169.78,31.88992159]
[1747548036993,15.85379931,169.84,169.79,3.33636026]
[1747548037905,9.96582795,169.83,169.79,3.33636026]
[1747548038414,9.96582795,169.83,169.78,26.0]
[1747548038904,15.85432589,169.83,169.78,26.0]
[1747548039796,9.96582795,169.82,169.78,26.0]
[1747548040400,9.96582795,169.79,169.75,4.19781792]
[1747548040599,9.96582795,169.78,169.73,4.19781792]
[1747548040801,9.96582795,169.79,169.73,10.08944785]
[1747548041103,9.96582795,169.79,169.73,36.08944785]
[1747548041299,9.96582795,169.78,169.73,36.08944785]
[1747548042206,8.0733,169.8,169.73,4.19781792]
[1747548042407,9.96582795,169.74,169.73,4.19781792]
[1747548042591,9.96582795,169.75,169.73,4.19781792]
[1747548042793,9.96582795,169.74,169.73,4.19781792]
[1747548043215,9.96582795,169.75,169.73,4.19781792]
[1747548043408,9.96582795,169.74,169.73,4.19781792]
[1747548043623,52.12962836,169.79,169.73,4.19781792]
[1747548043923,9.96582795,169.74,169.65,22.84746678]
[1747548044215,9.96582795,169.72,169.66,5.89412727]
[1747548045322,6.5386,169.71,169.66,5.89412727]
[1747548045522,9.96582795,169.69,169.66,5.89412727]
[1747548046116,9.96582795,169.7,169.66,5.89412727]
[1747548046922,9.96582795,169.69,169.66,5.89412727]
[1747548049025,9.96582795,169.69,169.65,31.89441976]
[1747548050817,9.96582795,169.67,169.63,31.8948434]
[1747548051016,9.96582795,169.66,169.63,31.8948434]
[1747548051211,9.96582795,169.65,169.59,4.19781792]
[1747548051404,9.96582795,169.65,169.59,24.63781792]
[1747548051607,9.96582795,169.64,169.6,5.89622641]
[1747548052108,9.96582795,169.65,169.6,5.89622641]
[1747548052917,9.96582795,169.65,169.59,5.89657409]
[1747548053114,5.8935308,169.68,169.59,5.89657409]
[1747548053322,9.96582795,169.65,169.59,20.63800931]
[1747548053635,9.96582795,169.67,169.6,18.64964886]
[1747548055038,9.96582795,169.67,169.61,5.89587878]
[1747548056032,20.26,169.7,169.61,20.63557573]
[1747548056238,20.26,169.7,169.62,18.64964886]
[1747548056422,9.96582795,169.68,169.62,18.64964886]
[1747548056912,9.96582795,169.69,169.63,20.63314271]
[1747548057713,20.26,169.7,169.63,20.63314271]
[1747548057914,20.26,169.7,169.64,44.64964886]
[1747548059215,20.26,169.7,169.65,5.89448865]
[1747548061438,9.96582795,169.72,169.65,5.89448865]
[1747548062845,138.2,169.73,169.65,20.63071028]
[1747548063042,20.26,169.74,169.68,26.0]
[1747548063235,9.96582795,169.75,169.68,26.0]
[1747548063427,11.57812795,169.76,169.68,26.0]
[1747548064745,1.6123,169.76,169.69,5.89309918]
[1747548064956,9.96582795,169.77,169.69,5.89309918]
[1747548065142,9.96582795,169.77,169.69,20.62584713]
[1747548066351,26.15004991,169.78,169.69,20.62584713]
[1747548066553,9.96582795,169.77,169.69,20.62584713]
[1747548066728,20.26,169.78,169.69,20.62584713]
[1747548067241,9.96582795,169.77,169.69,20.62584713]
[1747548067736,30.22582795,169.78,169.71,26.0]
[1747548067928,15.98132795,169.79,169.73,26.0]
[1747548068248,6.0155,169.79,169.73,26.0]
[1747548068421,6.0155,169.79,169.74,5.89136326]
[1747548069156,215.60192795,169.8,169.74,5.89136326]
[1747548069451,204.06,169.8,169.74,20.61977141]
[1747548069634,20.26,169.8,169.74,20.61977141]
[1747548069829,33.78362579,169.82,169.75,18.64964886]
[1747548070036,33.78362579,169.82,169.76,26.0]
[1747548070555,33.78362579,169.82,169.77,5.8903222]
[1747548071841,1.6564,169.85,169.79,5.88962836]
[1747548072035,9.96582795,169.84,169.79,5.88962836]
[1747548072361,9.96582795,169.83,169.77,5.88998232]
[1747548072733,9.96582795,169.82,169.77,5.88998232]
[1747548073032,9.96582795,169.83,169.77,5.88998232]
[1747548073639,7.54398724,169.85,169.77,5.88998232]
[1747548073845,9.96582795,169.83,169.77,5.88998232]
[1747548075148,9.96582795,169.81,169.76,31.89060936]
[1747548075369,9.96582795,169.78,169.73,20.3]
[1747548075665,9.96582795,169.75,169.71,5.89240469]
[1747548075833,9.96582795,169.76,169.71,5.89240469]
[1747548076635,9.96582795,169.77,169.71,5.89240469]
[1747548076969,9.96582795,169.79,169.72,44.64964886]
[1747548077763,9.96582795,169.78,169.72,44.64964886]
[1747548078566,9.96582795,169.78,169.73,5.89171036]
[1747548079259,9.96582795,169.78,169.72,44.64964886]
[1747548079260,9.96582795,169.77,169.72,31.89199617]
[1747548079441,9.96582795,169.76,169.71,26.0]
[1747548080084,9.96582795,169.75,169.7,20.24]
[1747548080671,9.96582795,169.75,169.7,26.13271241]
[1747548081081,9.96582795,169.74,169.7,20.24]
[1747548081380,9.96582795,169.74,169.68,5.89320193]
[1747548082783,15.85726852,169.74,169.68,5.89320193]
[1747548084873,9.96582795,169.73,169.67,31.89371521]
[1747548085073,9.96582795,169.71,169.64,5.89483612]
[1747548085276,9.96582795,169.71,169.65,46.22]
[1747548085475,9.96582795,169.71,169.65,20.22]
[1747548086493,9.96582795,169.7,169.64,31.89483612]
[1747548086700,9.96582795,169.69,169.64,31.89483612]
[1747548086877,9.96582795,169.67,169.62,24.37781792]
[1747548087077,9.96582795,169.67,169.62,50.37781792]
[1747548087262,9.96582795,169.67,169.62,30.19781792]
[1747548087463,9.96582795,169.67,169.62,4.19781792]
[1747548087685,9.96582795,169.67,169.63,26.0]
[1747548087890,9.96582795,169.66,169.62,4.19781792]
[1747548088386,9.96582795,169.65,169.6,5.89612401]
[1747548088762,9.96582795,169.65,169.6,31.89612401]
[1747548088977,20.3,169.68,169.6,31.89612401]
[1747548089173,9.96582795,169.65,169.6,31.89612401]
[1747548090084,9.96582795,169.65,169.6,5.89612401]
[1747548090675,9.96582795,169.64,169.6,5.89612401]
[1747548091184,9.96582795,169.65,169.6,5.89612401]
[1747548091586,15.86039294,169.65,169.59,5.89657409]
[1747548091790,9.96582795,169.64,169.59,5.89657409]
[1747548092793,9.96582795,169.65,169.59,5.89657409]
[1747548093781,9.96582795,169.64,169.59,5.89657409]
[1747548094888,9.96582795,169.63,169.58,5.896839]
[1747548095190,9.96582795,169.62,169.58,5.896839]
[1747548097084,9.96582795,169.62,169.57,31.89719409]
[1747548097991,9.96582795,169.61,169.57,31.89719409]
[1747548099392,5.89448865,169.65,169.57,31.89719409]
[1747548099596,9.96582795,169.61,169.57,31.89719409]
[1747548100476,9.96582795,169.6,169.55,5.8979652]
[1747548100995,9.96582795,169.59,169.55,5.8979652]
[1747548105585,9.96582795,169.6,169.55,5.8979652]
[1747548107487,9.96582795,169.59,169.55,5.8979652]
[1747548109682,26.21563822,169.62,169.54,5.89830808]
[1747548109683,20.32,169.62,169.54,5.89830808]
[1747548109889,9.96582795,169.58,169.54,5.89830808]
[1747548110900,9.96582795,169.57,169.53,5.898661]
[1747548111501,9.96582795,169.58,169.53,5.898661]
[1747548112794,6.4544,169.6,169.52,20.64653137]
[1747548112993,45.96,169.63,169.53,18.64964886]
[1747548113304,9.96582795,169.57,169.52,5.89900896]
[1747548113605,9.96582795,169.58,169.52,5.89900896]
[1747548113809,51.85519736,169.63,169.53,18.64964886]
[1747548114012,9.96582795,169.6,169.53,18.64964886]
[1747548115113,9.96582795,169.6,169.54,5.89831308]
[1747548116206,9.96582795,169.59,169.54,5.89831308]
[1747548116908,9.96582795,169.59,169.52,20.64653137]
[1747548117314,9.96582795,169.59,169.52,5.89900896]
[1747548117713,15.86240302,169.59,169.52,5.89900896]
[1747548118516,5.89657507,169.59,169.52,5.89900896]
[1747548118697,15.86240302,169.59,169.52,5.89900896]
[1747548119017,9.96582795,169.59,169.52,5.89900896]
[1747548120702,15.86242344,169.59,169.52,5.89900896]
[1747548121103,9.96582795,169.57,169.52,5.89900896]
[1747548122612,9.96582795,169.56,169.5,47.3879]
[1747548122813,5.89733326,169.57,169.5,51.65958414]
[1747548122814,9.96582795,169.55,169.5,51.65958414]
[1747548123308,9.96582795,169.56,169.5,31.89958414]
[1747548123505,5.89733326,169.57,169.5,31.89958414]
[1747548123691,9.96582795,169.56,169.5,31.89958414]
[1747548123892,9.96582795,169.55,169.5,31.89958414]
[1747548124412,15.86381792,169.55,169.5,31.89958414]
[1747548124715,9.96582795,169.55,169.5,31.89958414]
[1747548127116,9.96582795,169.54,169.5,31.89958414]
[1747548128625,9.96582795,169.55,169.5,31.89958414]
[1747548129401,5.89726956,169.57,169.5,31.89958414]
[1747548129711,9.96582795,169.55,169.5,31.89958414]
[1747548129907,9.96582795,169.55,169.5,5.89958414]
[1747548130107,9.96582795,169.54,169.5,5.89958414]
[1747548130306,9.96582795,169.54,169.49,5.9000531]
[1747548135430,9.96582795,169.53,169.49,5.9000531]
[1747548138129,9.96582795,169.53,169.48,31.90028792]
[1747548140753,9.96582795,169.52,169.47,5.90046871]
[1747548141956,9.96582795,169.54,169.47,5.90046871]
[1747548142529,9.96582795,169.54,169.47,25.48046871]
[1747548142935,9.96582795,169.54,169.47,40.23234219]
[1747548144361,20.3597594,169.64,169.51,18.64964886]